bitfinex-derivatives/quotes_ETHF0:USTF0_20250903
["timestamp","ask_amount","ask_price","bid_price","bid_amount"]
[1756927133227,0.4151,4465.8,4465.7,0.7081]
[1756927133524,0.1891,4465.8,4465.7,0.7081]
[1756927133820,0.4151,4465.8,4465.7,0.7081]
[1756927135526,4.24401968,4466.3,4465.7,0.7081]
[1756927135527,4.24401968,4466.3,4465.8,0.3098]
[1756927135822,3.3969,4466.3,4466.2,1.74431968]
[1756927136023,3.6229,4466.3,4466.2,1.74431968]
[1756927136614,3.4338,4466.3,4466.2,1.74431968]
[1756927136823,3.6229,4466.3,4466.2,1.74431968]
[1756927137019,3.6229,4466.3,4466.2,0.7081]
[1756927137220,3.3969,4466.3,4466.2,0.7081]
[1756927137425,3.6229,4466.3,4466.2,0.7081]
[1756927137922,0.4151,4466.3,4466.2,0.7081]
[1756927139335,3.2078,4467.0,4466.2,0.7081]
[1756927139336,0.3814,4467.0,4466.9,0.7081]
[1756927139628,3.5892,4467.5,4467.4,0.3983]
[1756927139926,3.3969,4467.5,4467.4,0.7081]
[1756927140230,4.1034,4467.5,4467.4,0.5116]
[1756927140417,4.1034,4467.5,4467.4,0.3098]
[1756927140617,0.1891,4467.1,4467.0,0.5231]
[1756927140822,0.3814,4467.1,4467.0,0.5231]
[1756927141224,0.3814,4467.1,4467.0,0.8329]
[1756927142228,0.6696,4467.1,4467.0,0.8329]
[1756927142529,0.6696,4467.1,4467.0,0.5116]
[1756927142718,0.6696,4467.1,4467.0,0.6364]
[1756927143118,0.3814,4467.1,4467.0,0.8329]
[1756927144725,0.3814,4467.1,4467.0,1.86911968]
[1756927144932,0.2882,4467.4,4467.0,1.86911968]
[1756927144933,3.3969,4467.5,4467.4,0.3983]
[1756927145127,4.1034,4467.5,4467.4,0.7081]
[1756927146134,3.8152,4467.5,4467.4,0.7081]
[1756927146631,4.1034,4467.5,4467.4,0.7081]
[1756927146835,0.17,4468.9,4468.0,0.1965]
[1756927147019,0.17,4468.9,4468.0,1.86911968]
[1756927147224,0.687,4468.1,4468.0,1.86911968]
[1756927148033,0.687,4468.1,4468.0,2.09292968]
[1756927148226,0.3591,4468.9,4468.8,0.3983]
[1756927148426,0.3591,4468.9,4468.8,1.74431968]
[1756927148929,0.17,4468.9,4468.8,1.74431968]
[1756927151235,0.3591,4468.9,4468.8,1.74431968]
[1756927151541,0.17,4468.9,4468.8,1.74431968]
[1756927158426,0.286,4469.7,4468.8,5.43451968]
[1756927158628,0.286,4469.9,4469.5,4.24401968]
[1756927158828,0.286,4469.9,4469.8,1.03621968]
[1756927158829,0.4859,4469.9,4469.8,1.03621968]
[1756927159428,0.6847,4469.9,4469.8,1.03621968]
[1756927160934,10.1004,4470.0,4469.8,1.03621968]
[1756927161141,0.286,4469.9,4469.8,1.03621968]
[1756927163533,0.4859,4469.9,4469.8,1.03621968]
[1756927163941,0.286,4469.9,4469.8,1.03621968]
[1756927164240,10.0,4470.0,4469.8,2.07243936]
[1756927164435,10.4073,4470.0,4469.9,0.227]
[1756927166335,10.6072,4470.0,4469.9,0.227]
[1756927167240,10.4073,4470.0,4469.9,1.26321968]
[1756927167835,10.0,4470.0,4469.9,1.26321968]
[1756927168239,10.286,4470.0,4469.9,1.26321968]
[1756927169140,10.4073,4470.0,4469.9,1.26321968]
[1756927169538,10.806,4470.0,4469.9,1.46520624]
[1756927170537,11.34537785,4470.0,4469.9,1.46520624]
[1756927173046,11.34575891,4470.0,4469.9,1.46520624]
[1756927174550,11.14695891,4470.0,4469.9,1.46520624]
[1756927177738,11.34575891,4470.0,4469.9,1.46520624]
[1756927179447,2.90405544,4470.0,4469.9,2.70341248]
[1756927179652,2.16439653,4470.0,4469.9,2.70341248]
[1756927179854,0.2592,4470.5,4470.4,0.2065]
[1756927180054,0.99490177,4470.5,4470.4,1.67070624]
[1756927180252,0.93560177,4470.5,4470.4,2.16140624]
[1756927180457,0.3987,4470.5,4470.4,2.16140624]
[1756927181056,0.52,4470.5,4470.4,2.16140624]
[1756927181856,0.8207,4470.5,4470.4,2.16140624]
[1756927185758,0.3007,4470.5,4470.4,2.16140624]
[1756927186460,0.507,4470.5,4470.4,2.16140624]
[1756927187363,0.507,4471.0,4470.9,0.7061]
[1756927187560,0.507,4471.0,4470.9,5.37810624]
[1756927190356,0.3007,4471.0,4470.9,5.37810624]
[1756927190569,0.1213,4471.5,4470.9,5.37810624]
[1756927190756,0.5293,4471.5,4471.4,0.2059]
[1756927190954,0.5293,4471.5,4471.4,0.4319]
[1756927191155,0.5293,4471.5,4471.4,1.67010624]
[1756927191355,0.83,4471.5,4471.4,1.67010624]
[1756927191556,0.83,4471.5,4471.4,1.85080855]
[1756927192058,0.83,4471.5,4471.4,1.67010624]
[1756927192254,0.83,4471.5,4471.4,1.46420624]
[1756927192457,0.83,4471.5,4471.4,5.06840624]
[1756927193461,0.83,4471.5,4471.4,4.87790624]
[1756927193662,0.83,4471.5,4471.4,4.67200624]
[1756927194459,0.83,4471.5,4471.4,1.46420624]
[1756927195055,0.5237,4471.0,4470.9,3.2078]
[1756927195250,0.8244,4471.0,4470.9,4.67200624]
[1756927195457,0.8244,4471.0,4470.9,4.87790624]
[1756927197559,0.8244,4471.0,4470.9,0.226]
[1756927199254,0.3007,4470.9,4470.4,3.2078]
[1756927199458,0.5024,4470.6,4470.5,0.4319]
[1756927199653,0.7087,4470.6,4470.5,1.67010624]
[1756927200067,0.3007,4470.6,4470.5,2.17030624]
[1756927200269,0.507,4470.6,4470.5,2.17030624]
[1756927200565,0.8244,4470.5,4470.4,3.2078]
[1756927200765,0.8244,4470.5,4470.1,1.23820624]
[1756927200766,0.408,4470.3,4470.1,1.23820624]
[1756927200958,0.1157,4470.5,4468.3,2.995]
[1756927200959,0.5237,4470.0,4469.7,1.23820624]
[1756927201160,0.408,4469.4,4469.3,3.2078]
[1756927201364,0.7087,4469.4,4469.3,3.6407]
[1756927201670,0.7087,4469.4,4469.3,3.81980259]
[1756927201862,0.7087,4469.4,4469.3,3.6407]
[1756927202067,0.7087,4469.4,4469.3,0.4329]
[1756927202465,0.7087,4469.4,4469.3,0.61207436]
[1756927202666,0.7087,4469.4,4469.3,0.227]
[1756927203069,0.7087,4469.4,4469.3,0.9331]
[1756927203268,0.7087,4469.4,4469.3,0.80069039]
[1756927204070,0.7087,4469.4,4469.3,0.227]
[1756927204561,0.7087,4469.4,4469.3,0.40531312]
[1756927204768,0.7087,4469.4,4469.3,0.17831312]
[1756927204964,0.3007,4469.3,4469.2,1.23820624]
[1756927205164,0.7087,4469.3,4469.0,0.227]
[1756927205562,0.1157,4469.5,4468.9,1.23820624]
[1756927205563,0.8244,4469.0,4468.9,1.23820624]
[1756927206469,0.7087,4468.9,4468.8,4.67300624]
[1756927206670,0.7087,4468.9,4468.8,1.23820624]
[1756927207266,0.7087,4468.9,4468.5,0.17847747]
[1756927207966,0.1157,4468.5,4468.4,1.23820624]
[1756927208168,0.1157,4468.5,4468.3,3.2078]
[1756927208169,0.3007,4468.4,4468.3,3.2078]
[1756927208368,0.7087,4468.4,4468.3,3.2078]
[1756927209766,0.7087,4468.4,4468.3,3.4137]
[1756927210372,0.7087,4468.4,4468.1,1.23820624]
[1756927210572,0.1157,4468.5,4468.1,1.23820624]
[1756927210868,0.7087,4468.2,4468.1,1.44410624]
[1756927211069,0.5024,4467.4,4467.3,3.4137]
[1756927211266,0.7087,4467.4,4467.3,3.4137]
[1756927211767,0.7087,4467.4,4467.3,3.6042]
[1756927214168,0.7087,4467.4,4467.3,3.9143]
[1756927214870,3.2078,4467.9,4467.3,3.9143]
[1756927215077,3.6109,4467.9,4467.8,1.63880624]
[1756927215269,3.6109,4467.9,4467.8,1.94890624]
[1756927215670,3.8988,4467.9,4467.8,1.63880624]
[1756927217275,3.8988,4467.9,4467.8,1.94890624]
[1756927218780,0.691,4467.4,4467.3,3.2078]
[1756927219075,0.691,4467.4,4467.3,3.3999]
[1756927219269,0.691,4467.4,4467.3,3.9185]
[1756927220076,0.691,4467.4,4467.3,3.3999]
[1756927220281,0.691,4467.4,4467.3,3.2078]
[1756927221774,0.691,4467.4,4466.9,0.5371]
[1756927221975,0.2879,4467.3,4467.2,0.1921]
[1756927222174,0.691,4467.3,4467.2,0.1921]
[1756927223776,0.4031,4466.9,4465.0,0.0431]
[1756927224076,0.4921,4466.2,4466.1,0.7107]
[1756927224580,0.691,4466.2,4466.1,0.7107]
[1756927224775,0.2879,4466.2,4466.1,0.7107]
[1756927225169,0.4921,4466.2,4466.1,0.7107]
[1756927226778,0.4921,4466.4,4466.3,0.7107]
[1756927226980,0.691,4466.4,4466.3,0.7107]
[1756927228084,0.691,4466.4,4466.3,0.4006]
[1756927228283,0.691,4466.4,4466.3,0.7107]
[1756927228482,0.691,4466.4,4466.3,0.4006]
[1756927228983,0.691,4466.4,4466.3,0.7107]
[1756927231577,0.691,4466.4,4466.3,1.74441154]
[1756927235588,0.691,4466.4,4466.3,1.43431154]
[1756927235884,0.691,4466.4,4466.3,1.74441154]
[1756927238380,0.2879,4467.0,4466.9,0.7107]
[1756927238580,0.4921,4467.3,4467.2,0.4006]
[1756927238880,1.22508026,4467.3,4467.2,1.74441154]
[1756927244392,1.22508026,4467.3,4467.2,1.43431154]
[1756927244892,1.9708918,4467.3,4466.6,3.4348]
[1756927245088,0.6836,4466.1,4466.0,3.2078]
[1756927245282,1.21768026,4466.1,4466.0,3.4025]
[1756927245890,1.21768026,4466.1,4466.0,0.7063]
[1756927246091,1.21768026,4466.1,4466.0,0.4003]
[1756927247395,0.6836,4465.5,4465.4,5.17481154]
[1756927248892,0.6836,4465.5,4465.4,1.96701154]
[1756927249093,0.8067,4465.5,4465.4,0.4003]
[1756927249395,1.34149319,4465.5,4465.4,0.1947]
[1756927250088,1.02339319,4465.5,4465.4,1.74001154]
[1756927250595,1.21839319,4465.5,4465.4,1.74001154]
[1756927250893,1.34149319,4465.5,4465.4,1.74001154]
[1756927251295,0.8067,4465.5,4465.4,1.74001154]
[1756927256594,0.4886,4465.9,4465.8,0.7063]
[1756927256896,1.0230719,4465.9,4465.8,1.74001154]
[1756927257090,0.4886,4465.9,4465.8,1.74001154]
[1756927261894,0.6836,4465.9,4465.8,1.74001154]
[1756927264000,0.4886,4465.9,4465.8,1.74001154]
[1756927265398,3.2078,4466.1,4466.0,0.8241]
[1756927265603,3.2078,4466.1,4466.0,1.04801]
[1756927265800,3.2078,4466.7,4466.6,0.7063]
[1756927266002,2.18460387,4466.7,4466.6,0.7063]
[1756927266208,0.5225,4467.3,4466.6,3.9141]
[1756927266508,0.2955,4467.3,4467.2,1.74001154]
[1756927266696,0.227,4467.6,4467.3,0.306]
[1756927266901,0.4201,4467.6,4467.5,1.74001154]
[1756927267303,0.7156,4467.6,4467.5,1.74001154]
[1756927269409,0.4886,4467.6,4467.5,1.74001154]
[1756927270405,0.2955,4468.1,4467.8,0.4003]
[1756927270709,0.4886,4468.2,4468.1,0.7063]
[1756927271206,1.02160906,4468.2,4468.1,0.7063]
[1756927271404,0.4886,4468.2,4468.1,0.7063]
[1756927272204,1.02147777,4468.2,4468.1,0.7063]
[1756927272402,0.4886,4468.2,4468.1,0.7063]
[1756927272603,0.2955,4468.2,4468.1,0.7063]
[1756927272801,0.2953,4468.4,4468.0,0.1133]
[1756927273003,0.5019,4468.4,4468.3,1.71491154]
[1756927273811,0.7,4468.4,4468.3,1.71491154]
[1756927274402,0.2953,4468.6,4468.3,1.41861154]
[1756927274607,0.5019,4468.5,4468.4,0.6812]
[1756927275406,0.2953,4468.4,4467.7,3.2078]
[1756927275606,0.7,4467.7,4467.6,0.1964]
[1756927275806,0.7,4467.7,4467.6,1.71491154]
[1756927277821,0.5019,4467.7,4467.6,1.71491154]
[1756927278114,0.7,4467.7,4467.6,1.41861154]
[1756927279208,0.7,4467.7,4467.6,1.71491154]
[1756927281912,0.5019,4467.7,4467.6,1.71491154]
[1756927289414,0.7,4467.7,4467.6,1.71491154]
[1756927293122,0.5019,4467.7,4467.6,1.71491154]
[1756927293522,0.5019,4467.7,4467.6,1.92092511]
[1756927303430,0.2997,4467.9,4467.6,1.62462511]
[1756927303726,0.4958,4467.7,4467.6,1.62462511]
[1756927304117,0.4958,4467.7,4467.6,1.92032511]
[1756927305225,0.2997,4468.4,4467.6,4.83242511]
[1756927305430,0.6866,4468.4,4468.3,1.93922511]
[1756927305729,1.22235319,4468.4,4468.3,1.93922511]
[1756927306328,1.22235319,4468.4,4468.3,1.64352511]
[1756927306529,1.22235319,4468.4,4468.3,0.4038]
[1756927306922,1.22235319,4468.4,4468.3,0.6995]
[1756927307728,1.22235319,4468.4,4468.3,0.4038]
[1756927308129,1.22235319,4468.4,4468.3,0.6995]
[1756927309031,1.22235319,4468.4,4467.9,0.2957]
[1756927309228,0.1961,4468.0,4467.9,1.43952511]
[1756927309428,0.4958,4468.0,4467.9,1.93922511]
[1756927309931,0.83545319,4468.0,4467.9,1.93922511]
[1756927310632,1.03155319,4468.0,4467.9,1.93922511]
[1756927310832,0.1961,4467.6,4467.5,1.66552511]
[1756927311028,0.1961,4467.6,4467.5,1.86952511]
[1756927311232,0.4958,4467.6,4467.5,1.86952511]
[1756927311532,0.4958,4467.6,4467.5,2.16522511]
[1756927313232,0.6866,4467.3,4467.2,3.4076]
[1756927313433,0.6866,4467.3,4467.2,0.1998]
[1756927313632,1.22221328,4467.3,4467.2,0.1998]
[1756927314334,1.22221328,4467.3,4467.2,0.6995]
[1756927315134,1.22221328,4467.3,4467.2,0.4038]
[1756927315334,0.6866,4467.3,4467.2,0.4038]
[1756927316136,0.6866,4467.3,4467.2,0.1998]
[1756927316834,0.6866,4467.3,4466.9,0.2957]
[1756927317135,0.3869,4467.3,4467.2,0.1998]
[1756927317638,0.6866,4467.3,4467.2,0.4955]
[1756927319435,0.6866,4467.3,4467.2,0.6995]
[1756927320332,0.1222,4467.0,4466.8,3.2078]
[1756927320641,0.6866,4466.9,4466.8,3.2078]
[1756927320841,0.6866,4466.9,4466.8,3.4076]
[1756927321342,0.6866,4466.9,4466.8,0.4038]
[1756927322831,0.91047,4466.9,4466.8,0.4038]
[1756927323131,0.91047,4466.9,4464.5,0.1178]
[1756927323132,0.2997,4465.9,4465.7,3.2078]
[1756927323338,0.2997,4465.7,4465.1,3.5035]
[1756927323537,0.4958,4465.2,4465.1,3.9073]
[1756927324245,0.4958,4465.2,4465.1,4.08853157]
[1756927324436,0.2997,4465.2,4465.1,4.08853157]
[1756927324636,0.2997,4465.9,4465.8,0.6995]
[1756927324842,0.2997,4465.9,4465.8,1.93922511]
[1756927325338,0.2997,4466.3,4465.8,1.64352511]
[1756927325543,0.2997,4466.3,4466.2,1.93922511]
[1756927325744,0.4958,4466.3,4466.2,1.93922511]
[1756927326042,0.6866,4466.3,4466.2,1.93922511]
[1756927326744,0.6866,4466.3,4466.2,0.4038]
[1756927326944,0.6866,4466.3,4465.6,3.2078]
[1756927326945,0.1222,4466.0,4465.7,1.23972511]
[1756927327141,0.5091,4466.0,4465.9,0.1998]
[1756927327333,0.8088,4466.0,4465.9,0.1998]
[1756927328343,0.2997,4465.9,4465.4,1.23972511]
[1756927328537,0.6866,4465.5,4465.4,1.73522511]
[1756927328737,0.6866,4465.5,4465.4,1.93922511]
[1756927328738,0.8088,4465.5,4465.4,1.93922511]
[1756927329333,0.4958,4465.5,4465.4,1.93922511]
[1756927329535,0.1222,4466.0,4465.4,1.64352511]
[1756927329739,0.6866,4465.9,4465.8,0.1998]
[1756927330946,0.6866,4465.9,4465.8,0.4038]
[1756927331142,0.2997,4466.2,4465.8,1.64352511]
[1756927331335,0.4958,4466.0,4465.9,0.6995]
[1756927334344,0.8245,4466.0,4465.9,0.1998]
[1756927334744,0.7049,4465.6,4465.5,0.2089]
[1756927335143,0.7049,4465.6,4465.2,0.2894]
[1756927335347,0.7049,4465.2,4465.1,3.4167]
[1756927335548,0.7049,4465.2,4465.1,3.6236]
[1756927335841,0.7049,4465.2,4465.1,3.913]
[1756927336147,0.7049,4465.2,4465.1,3.6236]
[1756927336754,0.7049,4465.2,4465.1,3.2078]
[1756927338852,0.7049,4465.2,4465.0,0.00335912]
[1756927340659,1.94462511,4465.1,4465.0,0.00335912]
[1756927341156,0.7049,4465.1,4465.0,0.00335912]
[1756927344056,0.7049,4465.1,4465.0,0.21225912]
[1756927345059,0.7049,4465.1,4465.0,0.00335912]
[1756927345753,0.9309,4465.1,4465.0,0.00335912]
[1756927352160,1.4681175,4465.1,4465.0,0.00335912]
[1756927352461,0.7049,4464.1,4464.0,0.2089]
[1756927353158,0.7049,4464.1,4464.0,0.4158]
[1756927353355,0.7049,4464.1,4464.0,0.7052]
[1756927353559,0.7049,4464.1,4464.0,1.74009589]
[1756927354560,0.5003,4464.1,4464.0,1.74009589]
[1756927357954,0.35345912,4464.5,4464.1,0.2894]
[1756927357955,0.302,4464.4,4464.1,0.2894]
[1756927358155,0.00335912,4464.5,4464.0,4.77579589]
[1756927358156,0.00335912,4464.5,4464.3,1.45069589]
[1756927358459,0.00335912,4464.5,4464.4,0.7052]
[1756927358656,3.2078,4465.1,4465.0,0.4995]
[1756927358857,0.302,4465.6,4465.0,1.82379589]
[1756927359054,0.7049,4465.6,4465.5,1.74009589]
[1756927359366,0.7049,4465.3,4465.2,1.24379589]
[1756927359963,0.7049,4465.3,4465.2,1.45069589]
[1756927360163,0.7049,4465.3,4465.2,1.74009589]
[1756927362265,0.302,4465.3,4465.2,1.74009589]
[1756927362761,3.2078,4465.8,4465.2,1.74009589]
[1756927362762,3.6961,4465.8,4465.7,0.6995]
[1756927363152,3.9013,4465.8,4465.7,0.6995]
[1756927363665,3.9013,4465.8,4465.7,0.3908]
[1756927365865,3.9013,4465.8,4465.7,0.1946]
[1756927367564,0.2829,4465.7,4465.6,1.22949589]
[1756927367765,0.2829,4465.7,4465.6,1.42569589]
[1756927367766,0.6935,4465.7,4465.6,1.42569589]
[1756927370868,0.6935,4465.7,4465.6,1.22949589]
[1756927371069,0.6935,4465.7,4465.6,1.03489589]
[1756927371373,0.6935,4465.7,4465.6,0.1946]
[1756927371570,0.4106,4465.7,4465.5,1.03489589]
[1756927371772,0.6935,4465.6,4465.5,1.03489589]
[1756927371972,0.6935,4465.6,4465.5,1.22949589]
[1756927372172,0.4106,4464.7,4464.6,3.4024]
[1756927372375,0.6935,4464.7,4464.6,1.42569589]
[1756927372567,0.1185,4465.0,4464.6,1.73439589]
[1756927372769,0.5509,4465.0,4464.9,1.73439589]
[1756927373277,1.039,4465.0,4464.9,1.73439589]
[1756927373465,1.039,4465.0,4464.9,1.42569589]
[1756927374670,1.039,4465.0,4464.9,1.03489589]
[1756927374875,0.4106,4464.4,4464.3,1.73439589]
[1756927375072,0.6935,4464.4,4464.3,1.73439589]
[1756927378688,0.6935,4464.4,4464.3,0.6995]
[1756927378880,0.6935,4464.4,4464.3,1.73439589]
[1756927380183,1.38039589,4465.0,4464.3,1.73439589]
[1756927380184,0.2829,4464.7,4464.3,1.73439589]
[1756927380387,0.2829,4464.9,4464.6,1.42569589]
[1756927380591,0.6935,4464.7,4464.6,1.42569589]
[1756927380778,0.1185,4465.0,4464.6,1.42569589]
[1756927380981,0.6068,4465.0,4464.9,1.42569589]
[1756927381183,0.6068,4465.0,4464.9,1.73439589]
[1756927381583,0.812,4465.0,4464.9,1.73439589]
[1756927381782,0.2054,4464.7,4464.6,1.42569589]
[1756927381981,0.4883,4464.7,4464.6,1.42569589]
[1756927382480,0.4883,4464.7,4464.6,1.73439589]
[1756927389088,0.6935,4464.7,4464.6,1.73439589]
[1756927389795,0.6935,4464.7,4464.6,0.6995]
[1756927389987,0.6935,4464.7,4464.6,1.42569589]
[1756927390189,0.6935,4464.7,4464.6,1.22949589]
[1756927390489,0.4106,4464.4,4464.3,1.22949589]
[1756927390692,0.4106,4464.4,4463.9,0.3087]
[1756927390996,0.4883,4464.0,4463.9,0.6995]
[1756927391201,0.2829,4464.0,4463.9,0.6995]
[1756927391994,0.5081,4464.6,4464.5,0.4014]
[1756927392194,0.5081,4464.6,4464.5,0.6992]
[1756927392594,0.5081,4464.6,4464.5,1.73409589]
[1756927392797,0.7009,4464.6,4464.5,1.73409589]
[1756927393297,0.7009,4464.6,4464.5,0.193]
[1756927394091,0.7009,4464.6,4464.5,0.6992]
[1756927395692,0.7009,4464.6,4464.5,1.73409589]
[1756927396895,0.7009,4464.6,4464.5,0.6992]
[1756927397099,0.7009,4464.2,4464.1,0.6992]
[1756927397297,0.7009,4464.2,4464.1,0.4014]
[1756927397492,0.7009,4464.2,4464.1,0.193]
[1756927399192,0.5113,4464.0,4463.9,1.22789589]
[1756927399392,0.8221,4464.0,4463.9,1.22789589]
[1756927400001,0.5113,4464.0,4463.5,3.2078]
[1756927400194,0.5113,4464.0,4463.5,3.4008]
[1756927400195,0.7009,4463.6,4463.5,3.4008]
[1756927401297,0.7009,4463.6,4463.5,3.907]
[1756927409405,0.7009,4463.6,4463.5,0.6992]
[1756927410307,0.7009,4463.6,4463.5,0.4014]
[1756927411005,0.7009,4463.6,4463.5,0.6992]
[1756927412113,0.7009,4463.6,4463.5,0.4014]
[1756927412405,0.7009,4463.6,4463.5,0.193]
[1756927414113,0.5113,4463.5,4463.4,0.193]
[1756927414506,0.5113,4463.5,4463.4,0.6992]
[1756927414706,0.8221,4463.5,4463.4,0.6992]
[1756927414904,0.8221,4463.5,4463.4,0.4014]
[1756927415703,0.8221,4463.5,4463.4,0.6992]
[1756927417506,0.7009,4463.5,4463.4,0.6992]
[1756927419113,0.8221,4463.5,4463.4,0.6992]
[1756927421413,0.7009,4463.5,4463.4,0.6992]
[1756927421611,3.4338,4464.3,4463.5,0.0846]
[1756927421612,3.2078,4464.3,4463.5,0.0846]
[1756927421918,3.5944,4464.3,4464.2,0.6963]
[1756927422105,3.5944,4464.3,4464.2,0.4065]
[1756927422312,3.8868,4464.3,4464.2,0.4065]
[1756927422513,0.4904,4464.3,4464.2,0.6963]
[1756927423806,0.679,4464.3,4464.2,0.206]
[1756927424008,0.803,4464.0,4463.9,0.4958]
[1756927424515,0.803,4464.0,4463.6,3.2078]
[1756927424516,0.679,4464.0,4463.6,3.2078]
[1756927424718,0.679,4463.7,4463.6,3.9041]
[1756927427214,0.679,4463.7,4463.6,3.4138]
[1756927427424,0.124,4463.5,4463.4,0.206]
[1756927427623,0.5106,4463.5,4463.4,0.206]
[1756927427820,0.5106,4463.5,4463.4,0.6963]
[1756927428014,0.4904,4463.5,4463.4,0.6963]
[1756927428817,0.679,4463.5,4463.4,0.6963]
[1756927429124,0.803,4463.5,4463.4,0.4065]
[1756927429820,0.803,4463.5,4463.4,0.206]
[1756927432023,0.803,4463.5,4463.4,0.4065]
[1756927432417,0.803,4463.5,4463.4,0.6963]
[1756927433023,0.803,4463.5,4463.4,0.4065]
[1756927434118,0.2924,4463.4,4463.1,4.45004685]
[1756927434324,0.481,4463.4,4463.3,0.4958]
[1756927434526,0.679,4463.4,4463.3,0.6963]
[1756927434823,0.2924,4463.3,4463.1,4.45004685]
[1756927435223,0.4904,4463.2,4463.1,5.14634685]
[1756927437126,0.679,4463.2,4463.1,3.6143]
[1756927437323,0.679,4463.2,4463.1,0.4065]
[1756927438822,0.679,4463.2,4462.8,0.17029477]
[1756927439125,0.679,4462.9,4462.8,0.37629477]
[1756927439522,0.679,4462.9,4462.8,0.86659477]
[1756927440822,0.679,4462.9,4462.8,0.57679477]
[1756927441624,0.679,4462.9,4462.8,0.86659477]
[1756927443219,0.2924,4463.3,4462.9,0.2898]
[1756927443528,0.679,4463.7,4463.6,0.6963]
[1756927443723,1.22100573,4463.7,4463.6,0.6963]
[1756927444119,0.679,4463.7,4463.6,0.6963]
[1756927445225,0.679,4463.7,4463.6,0.4065]
[1756927446728,0.679,4463.7,4463.6,0.6963]
[1756927447622,0.1212,4464.5,4464.4,0.206]
[1756927447623,0.5078,4464.5,4464.4,0.206]
[1756927447933,1.56819047,4464.5,4463.9,0.2898]
[1756927448229,0.4904,4463.9,4463.8,3.9041]
[1756927449627,0.679,4463.9,4463.8,3.9041]
[1756927451824,0.4904,4463.9,4463.8,3.9041]
[1756927453321,0.2924,4463.9,4463.8,5.14634685]
[1756927453528,0.2939,4464.4,4463.8,3.6143]
[1756927453725,3.2078,4464.8,4464.2,0.6762]
[1756927453922,0.54201245,4464.7,4464.5,0.3853]
[1756927454122,1.02481245,4464.6,4464.5,0.6762]
[1756927454330,0.3799,4464.1,4464.0,0.6762]
[1756927454529,0.6738,4464.1,4464.0,0.6762]
[1756927455418,0.6738,4464.1,4464.0,0.191]
[1756927455827,0.6738,4464.1,4464.0,0.6762]
[1756927457924,0.3799,4463.9,4463.8,3.6248]
[1756927458129,1.91604685,4463.9,4463.2,3.2078]
[1756927458424,0.6738,4463.3,4463.2,3.3988]
[1756927459329,0.6738,4463.3,4463.2,0.191]
[1756927459727,0.6738,4463.3,4463.2,0.3853]
[1756927459931,0.6738,4463.3,4463.2,0.6762]
[1756927460829,0.1193,4464.0,4463.2,1.91844685]
[1756927461035,0.89783,4463.9,4463.8,0.191]
[1756927461226,0.6738,4463.9,4463.8,0.3853]
[1756927461421,0.6738,4463.9,4463.8,0.6762]
[1756927461829,0.6738,4463.9,4463.8,0.3853]
[1756927462432,0.6738,4463.9,4463.8,0.191]
[1756927463237,0.6738,4463.9,4463.8,0.6762]
[1756927464032,0.2939,4464.2,4463.9,0.2909]
[1756927464233,0.2939,4464.2,4464.1,1.91844685]
[1756927465138,0.2939,4464.4,4464.2,0.2909]
[1756927465346,0.226,4464.9,4464.3,0.3853]
[1756927465543,1.21554583,4464.8,4464.7,0.191]
[1756927466534,1.21554583,4464.8,4464.4,0.2909]
[1756927466735,0.1193,4464.5,4464.4,0.4819]
[1756927466941,0.7931,4464.5,4464.4,0.4819]
[1756927467244,0.7931,4464.5,4464.4,0.3853]
[1756927467635,0.7931,4464.5,4464.4,0.6762]
[1756927470249,0.6738,4464.5,4464.4,0.6762]
[1756927470445,0.4828,4464.5,4464.4,0.6762]
[1756927471549,0.6738,4464.5,4464.4,0.6762]
[1756927471751,0.7931,4464.5,4464.4,0.6762]
[1756927472048,0.7931,4464.5,4464.4,0.191]
[1756927477651,1.38469743,4465.0,4464.3,1.03469743]
[1756927477652,0.124,4465.0,4464.5,0.2909]
[1756927477842,0.226,4465.7,4464.9,1.41999743]
[1756927478046,0.3799,4465.4,4465.3,1.22569743]
[1756927478255,0.6738,4465.4,4465.3,1.22569743]
[1756927478449,0.6738,4465.4,4465.3,1.71089743]
[1756927478954,0.6738,4465.7,4465.6,0.6762]
[1756927479152,0.6738,4465.7,4465.6,1.71089743]
[1756927479348,3.2078,4465.8,4465.6,1.41999743]
[1756927479553,3.2078,4465.8,4465.7,0.6762]
[1756927479753,0.4828,4465.9,4465.8,0.2909]
[1756927480051,0.4828,4465.9,4465.8,0.6762]
[1756927480259,0.2939,4466.4,4465.9,0.2909]
[1756927480455,0.6738,4466.4,4466.3,1.22569743]
[1756927481759,0.6738,4466.4,4466.3,1.71089743]
[1756927493669,0.4828,4466.4,4466.3,1.71089743]
[1756927495965,3.2078,4466.7,4466.3,1.71089743]
[1756927496171,0.3105,4466.6,4466.5,0.4034]
[1756927496373,0.3105,4466.6,4466.5,0.7151]
[1756927496670,0.7108,4466.6,4466.5,0.4034]
[1756927498069,0.7108,4466.6,4466.0,1.03469743]
[1756927498276,0.7108,4466.1,4466.0,0.4034]
[1756927498762,0.7108,4466.1,4466.0,0.7151]
[1756927500270,1.43499743,4466.1,4464.0,1.14989743]
[1756927500472,0.2069,4465.2,4465.1,7.95259743]
[1756927500671,0.7108,4465.2,4465.1,3.6112]
[1756927501170,0.7108,4465.2,4465.1,3.9229]
[1756927501370,0.7108,4465.2,4465.1,4.95759743]
[1756927501976,0.7108,4465.2,4465.1,3.4118]
[1756927502173,0.1135,4465.0,4464.5,3.2078]
[1756927502375,0.7108,4464.6,4464.5,3.4118]
[1756927502966,0.7108,4464.6,4464.5,0.7151]
[1756927505076,0.5174,4464.6,4464.5,1.74979743]
[1756927507076,0.7108,4464.6,4464.5,1.74979743]
[1756927508478,0.5174,4464.6,4464.5,1.74979743]